bitfinex/quotes_BTCUSD_20240911
["timestamp","ask_amount","ask_price","bid_price","bid_amount"]
[1726078381033,0.02791003,57895.0,57894.0,1.21379293]
[1726078381480,0.02891003,57895.0,57894.0,1.22179293]
[1726078381700,0.02791003,57895.0,57894.0,1.21379293]
[1726078381923,0.001821,57895.0,57894.0,1.22679293]
[1726078382402,0.001821,57895.0,57894.0,0.53587693]
[1726078382617,0.001821,57895.0,57894.0,0.54687693]
[1726078382854,0.001821,57895.0,57894.0,0.89233493]
[1726078383575,0.001821,57895.0,57894.0,1.23779293]
[1726078384029,0.001821,57895.0,57894.0,0.54687693]
[1726078384030,0.146921,57895.0,57894.0,0.54687693]
[1726078384742,0.001821,57895.0,57894.0,0.98156892]
[1726078384953,0.02890867,57895.0,57894.0,1.32702692]
[1726078386345,0.001821,57895.0,57894.0,1.32702692]
[1726078386579,0.665099,57895.0,57894.0,0.02868993]
[1726078387037,0.665099,57895.0,57894.0,0.024]
[1726078387260,0.665099,57895.0,57894.0,0.02866122]
[1726078387500,0.665099,57895.0,57894.0,0.01766122]
[1726078387753,0.665099,57895.0,57894.0,0.001]
[1726078387992,0.664099,57895.0,57894.0,0.001]
[1726078388217,0.671099,57895.0,57894.0,0.001]
[1726078388458,0.172732,57893.0,57889.0,0.172741]
[1726078389367,0.172735,57892.0,57888.0,0.172746]
[1726078389615,0.172735,57892.0,57890.0,0.00466122]
[1726078389843,0.172735,57892.0,57888.0,0.172746]
[1726078390076,0.172735,57892.0,57891.0,0.00466122]
[1726078390312,0.02709093,57893.0,57891.0,0.01774072]
[1726078390552,0.491376,57895.0,57891.0,0.02241386]
[1726078390785,0.001,57893.0,57891.0,0.02241386]
[1726078391020,0.005,57893.0,57891.0,0.02241386]
[1726078391260,0.176733,57893.0,57891.0,0.00467314]
[1726078391481,0.172733,57893.0,57891.0,0.00467314]
[1726078391706,0.005,57893.0,57891.0,0.17740914]
[1726078391935,0.001,57893.0,57891.0,0.05696305]
[1726078392179,0.17273,57894.0,57891.0,0.05696305]
[1726078392395,0.001,57893.0,57891.0,0.05696305]
[1726078392896,0.005,57893.0,57891.0,0.05696305]
[1726078393580,0.005,57893.0,57891.0,0.22969805]
[1726078393846,0.004,57893.0,57892.0,0.9211938]
[1726078394316,0.000821,57895.0,57894.0,0.862645]
[1726078394535,0.000821,57895.0,57894.0,0.858645]
[1726078394753,0.000821,57895.0,57894.0,0.513187]
[1726078394978,0.000821,57895.0,57894.0,0.51786777]
[1726078395208,0.000821,57895.0,57894.0,0.51386777]
[1726078395430,0.000821,57895.0,57894.0,0.95741143]
[1726078395883,0.006821,57895.0,57894.0,0.95741143]
[1726078398213,0.006821,57895.0,57894.0,0.51386777]
[1726078399109,0.006821,57895.0,57894.0,0.85932577]
[1726078399334,0.006821,57895.0,57894.0,0.51386777]
[1726078400659,0.03390954,57895.0,57894.0,0.51386777]
[1726078402032,0.072021,57895.0,57894.0,0.00468077]
[1726078402515,0.006821,57895.0,57894.0,1.26607215]
[1726078402731,0.006821,57895.0,57894.0,1.5287193]
[1726078403410,0.006821,57895.0,57894.0,1.32897215]
[1726078403886,0.006821,57895.0,57894.0,1.27668377]
[1726078404121,0.005821,57895.0,57894.0,1.27668377]
[1726078404864,0.02790652,57895.0,57894.0,1.27668377]
[1726078405341,0.02790652,57895.0,57894.0,0.93122577]
[1726078406739,0.02990652,57895.0,57894.0,0.93122577]
[1726078406939,0.02990652,57895.0,57894.0,0.86832577]
[1726078408097,0.02790652,57895.0,57894.0,0.86832577]
[1726078408346,0.02890652,57895.0,57894.0,0.86832577]
[1726078411185,0.02890652,57895.0,57894.0,0.86996377]
[1726078411626,0.02790652,57895.0,57894.0,0.86996377]
[1726078412088,0.000821,57895.0,57894.0,0.88296377]
[1726078412312,0.000821,57895.0,57894.0,0.87996377]
[1726078412542,0.000821,57895.0,57894.0,1.22542177]
[1726078412770,0.000821,57895.0,57894.0,0.89196377]
[1726078413006,0.000821,57895.0,57894.0,1.5329453]
[1726078413690,0.000821,57895.0,57894.0,2.0184033]
[1726078413913,0.000821,57895.0,57894.0,1.6749453]
[1726078414179,0.000821,57895.0,57894.0,2.0204033]
[1726078414670,0.000821,57895.0,57894.0,1.6749453]
[1726078415351,0.000821,57895.0,57894.0,2.0204033]
[1726078416543,0.000821,57895.0,57894.0,2.03247462]
[1726078416760,0.000821,57895.0,57894.0,1.68701662]
[1726078417178,0.000821,57895.0,57894.0,2.03247462]
[1726078417659,0.000821,57895.0,57894.0,2.53093262]
[1726078417910,0.000821,57895.0,57894.0,2.18547462]
[1726078418814,0.000821,57895.0,57894.0,2.05769824]
[1726078419045,0.000821,57895.0,57894.0,1.42172177]
[1726078419290,0.000821,57895.0,57894.0,0.89196377]
[1726078424575,0.145121,57895.0,57894.0,0.02831877]
[1726078424806,0.145121,57895.0,57894.0,0.20104777]
[1726078425045,0.317847,57895.0,57894.0,0.02831877]
[1726078425278,1.03583914,57895.0,57894.0,0.02831877]
[1726078425498,1.03583914,57895.0,57894.0,0.013638]
[1726078425980,1.38129114,57895.0,57894.0,0.001638]
[1726078426200,1.38329114,57895.0,57894.0,0.001638]
[1726078426654,1.45907438,57895.0,57894.0,0.001638]
[1726078426898,1.56238536,57895.0,57894.0,0.001638]
[1726078427594,1.53648999,57895.0,57894.0,0.001638]
[1726078428069,1.57038536,57895.0,57894.0,0.003638]
[1726078428295,1.56238536,57895.0,57894.0,0.002638]
[1726078428550,1.53645237,57895.0,57894.0,0.002638]
[1726078428801,1.54545237,57895.0,57894.0,0.003638]
[1726078429047,1.98031343,57895.0,57894.0,0.001638]
[1726078429284,1.98031343,57895.0,57894.0,0.002638]
[1726078429285,2.14487991,57895.0,57894.0,0.002638]
[1726078429519,1.98931343,57895.0,57894.0,0.002638]
[1726078429738,2.13587991,57895.0,57894.0,0.001638]
[1726078429969,2.14487991,57895.0,57894.0,0.002638]
[1726078430455,1.99331343,57895.0,57894.0,0.003638]
[1726078430914,1.98931343,57895.0,57894.0,0.002638]
[1726078431188,1.99731343,57895.0,57894.0,0.003638]
[1726078431423,1.98831343,57895.0,57894.0,0.002638]
[1726078431913,1.99831343,57895.0,57894.0,0.003638]
[1726078432133,1.97122529,57895.0,57894.0,0.003638]
[1726078433509,2.10060814,57895.0,57894.0,0.003638]
[1726078434440,1.90111048,57895.0,57894.0,0.003638]
[1726078434852,2.03049333,57895.0,57894.0,0.003638]
[1726078435323,2.03166012,57895.0,57894.0,0.003638]
[1726078435997,1.99966012,57895.0,57894.0,0.003638]
[1726078436260,1.92233931,57895.0,57894.0,0.003638]
[1726078436478,1.89646676,57895.0,57894.0,0.003638]
[1726078436716,1.84475016,57895.0,57894.0,0.003638]
[1726078436941,1.49929816,57895.0,57894.0,0.003638]
[1726078437173,1.5507521,57895.0,57894.0,0.003638]
[1726078437411,1.49903687,57895.0,57894.0,0.003638]
[1726078438551,1.55403687,57895.0,57894.0,0.003638]
[1726078438842,1.55403687,57895.0,57876.0,0.00164]
[1726078438843,1.20946,57877.0,57876.0,0.00164]
[1726078439074,1.35276,57877.0,57876.0,0.00164]
[1726078439568,1.0342998,57877.0,57876.0,0.00164]
[1726078440309,0.6887398,57877.0,57876.0,0.00164]
[1726078440979,1.0072,57877.0,57876.0,0.00164]
[1726078441645,1.0182,57877.0,57876.0,0.00164]
[1726078441894,1.0182,57877.0,57876.0,0.00364]
[1726078442141,1.0072,57877.0,57876.0,0.00364]
[1726078442386,0.66264,57877.0,57876.0,0.00364]
[1726078443280,1.0082,57877.0,57876.0,0.00364]
[1726078443504,0.66264,57877.0,57876.0,0.00364]
[1726078444251,0.02809926,57877.0,57876.0,0.00364]
[1726078444739,0.02809926,57877.0,57876.0,0.00821459]
[1726078446184,0.02809926,57877.0,57876.0,0.00364]
[1726078446421,0.02809926,57877.0,57876.0,0.00821459]
[1726078448534,0.02809926,57877.0,57876.0,0.18099759]
[1726078449437,0.02809926,57877.0,57876.0,0.00821459]
[1726078452168,0.001,57877.0,57876.0,0.18099759]
[1726078452869,0.001,57877.0,57876.0,0.52656359]
[1726078453089,0.001,57877.0,57876.0,0.87212959]
[1726078453563,0.001,57877.0,57876.0,0.59226359]
[1726078453787,0.001,57877.0,57876.0,0.24669759]
[1726078454253,0.001,57877.0,57876.0,0.59226359]
[1726078454496,0.001,57877.0,57876.0,1.41952305]
[1726078454971,0.001,57877.0,57876.0,1.36029559]
[1726078455191,0.0280939,57877.0,57876.0,1.36029559]
[1726078455687,0.001,57877.0,57876.0,1.36029559]
[1726078455908,0.001,57877.0,57876.0,1.70586159]
[1726078455909,0.02809603,57877.0,57876.0,1.70586159]
[1726078456137,0.02809603,57877.0,57876.0,1.88203114]
[1726078456819,0.02809603,57877.0,57876.0,1.88003114]
[1726078457038,0.02809603,57877.0,57876.0,1.88403114]
[1726078457280,0.02809603,57877.0,57876.0,1.53846514]
[1726078457497,0.02809603,57877.0,57876.0,1.53446514]
[1726078457742,0.02709603,57877.0,57876.0,1.53446514]
[1726078457975,0.02909603,57877.0,57876.0,1.54646514]
[1726078458197,0.02909603,57877.0,57876.0,0.01821459]
[1726078458478,0.02709603,57877.0,57876.0,0.00621459]
[1726078458666,0.02809603,57877.0,57876.0,0.53356359]
[1726078458938,0.02709603,57877.0,57876.0,0.52456359]
[1726078459184,0.02909603,57877.0,57876.0,0.54256359]
[1726078459420,0.02909603,57877.0,57876.0,0.53356359]
[1726078459421,0.02809603,57877.0,57876.0,0.53356359]
[1726078459633,0.02809603,57877.0,57876.0,0.87912959]
[1726078460365,0.02809603,57877.0,57876.0,0.93952959]
[1726078460591,0.02809603,57877.0,57876.0,0.93052959]
[1726078460592,0.02709603,57877.0,57876.0,0.93052959]
[1726078460840,0.02909603,57877.0,57876.0,0.94852959]
[1726078462012,0.002,57877.0,57876.0,1.96882]
[1726078462483,0.002,57877.0,57876.0,1.29409559]
[1726078465008,0.02909356,57877.0,57876.0,1.29409559]
[1726078472075,0.002,57877.0,57876.0,1.29409559]
[1726078473227,0.002,57877.0,57876.0,0.02421459]
[1726078473441,0.17478,57877.0,57876.0,0.02421459]
[1726078473666,0.002,57877.0,57876.0,0.19699759]
[1726078473900,0.002,57877.0,57876.0,0.02421459]
[1726078474118,0.172764,57883.0,57876.0,0.52456359]
[1726078474383,0.234465,57882.0,57878.0,0.172775]
[1726078474611,0.172768,57881.0,57876.0,0.52856059]
[1726078474851,0.0617,57882.0,57879.0,0.00456528]
[1726078474852,0.172772,57880.0,57879.0,0.00456528]
[1726078475063,0.172772,57880.0,57876.0,0.00564]
[1726078475064,0.001,57877.0,57876.0,0.00764]
[1726078475298,0.345542,57880.0,57876.0,0.00164]
[1726078475299,0.172777,57878.0,57876.0,0.00164]
[1726078475528,1.35487977,57877.0,57876.0,0.00164]
[1726078475770,1.35056,57877.0,57876.0,0.00164]
[1726078475988,1.005,57877.0,57876.0,0.00164]
[1726078476444,1.35056,57877.0,57876.0,0.00164]
[1726078477361,1.35056,57877.0,57876.0,0.00264]
[1726078477577,1.35056,57877.0,57876.0,0.00164]
[1726078477975,1.36256,57877.0,57876.0,0.00264]
[1726078478445,1.37556,57877.0,57876.0,0.00364]
[1726078478685,1.85312,57877.0,57876.0,0.00364]
[1726078478915,2.0062677,57877.0,57876.0,0.00364]
[1726078479144,1.89057223,57877.0,57876.0,0.00264]
[1726078479614,2.17038285,57877.0,57876.0,0.00264]
[1726078479833,2.15938285,57877.0,57876.0,0.00164]
[1726078480064,1.9952133,57877.0,57876.0,0.00264]
[1726078480280,1.9932133,57877.0,57876.0,0.00264]
[1726078480496,1.88957223,57877.0,57876.0,0.00264]
[1726078480711,1.85012,57877.0,57876.0,0.00364]
[1726078480935,1.55227728,57877.0,57876.0,0.00364]
[1726078481154,1.90973117,57877.0,57876.0,0.00364]
[1726078481383,2.10010317,57877.0,57876.0,0.00364]
[1726078481605,2.44566317,57877.0,57876.0,0.00364]
[1726078481834,2.43326792,57877.0,57876.0,0.00364]
[1726078482097,2.54588319,57877.0,57876.0,0.00364]
[1726078482332,2.39033998,57877.0,57876.0,0.00364]
[1726078482551,2.55776203,57877.0,57876.0,0.00364]
[1726078482776,2.52019165,57877.0,57876.0,0.00364]
[1726078482993,2.54576294,57877.0,57876.0,0.00264]
[1726078483214,2.55976294,57877.0,57876.0,0.00264]
[1726078483453,2.52219165,57877.0,57876.0,0.00264]
[1726078483676,2.50819165,57877.0,57876.0,0.00264]
[1726078483910,1.55568015,57864.0,57863.0,0.00164]
[1726078484134,1.65568015,57864.0,57863.0,0.00164]
[1726078484369,2.45170362,57864.0,57863.0,0.00164]
[1726078484591,2.13193936,57864.0,57863.0,0.00164]
[1726078484866,2.10575731,57864.0,57863.0,0.00164]
[1726078485089,2.30048,57864.0,57863.0,0.00164]
[1726078485310,2.33559032,57864.0,57863.0,0.00164]
[1726078485531,2.43897588,57864.0,57863.0,0.00164]
[1726078485751,2.30425319,57864.0,57863.0,0.00164]
[1726078485998,2.53850563,57864.0,57863.0,0.00164]
[1726078486204,2.19286763,57864.0,57863.0,0.00164]
[1726078486435,2.68166654,57864.0,57863.0,0.00164]
[1726078486653,2.52119809,57864.0,57863.0,0.00164]
[1726078487087,2.85783609,57864.0,57863.0,0.00164]
[1726078487553,2.78050245,57864.0,57863.0,0.00164]
[1726078488225,2.77843504,57864.0,57863.0,0.00164]
[1726078488451,2.75258221,57864.0,57863.0,0.00164]
[1726078488681,2.76258221,57864.0,57863.0,0.00164]
[1726078488908,2.75258221,57864.0,57863.0,0.00164]
[1726078489145,2.21477466,57864.0,57863.0,0.00164]
[1726078489374,2.13736106,57864.0,57863.0,0.00164]
[1726078489601,2.14436106,57864.0,57863.0,0.00164]
[1726078489828,2.15836106,57864.0,57863.0,0.00164]
[1726078490052,2.14436106,57864.0,57863.0,0.00164]
[1726078490717,2.14236106,57864.0,57863.0,0.00164]
[1726078490947,2.10125074,57864.0,57863.0,0.00164]
[1726078491192,2.11525074,57864.0,57863.0,0.00164]
[1726078491428,1.02140859,57864.0,57863.0,0.00164]
[1726078491702,0.8795,57875.0,57874.0,0.863945]
[1726078491942,0.05160251,57903.0,57893.0,0.636396]
[1726078492186,0.0038036,57912.0,57907.0,0.518071]
[1726078492187,0.08661613,57908.0,57907.0,0.518071]
[1726078492422,0.0038036,57912.0,57909.0,0.172684]
[1726078492653,0.0038036,57912.0,57911.0,0.172678]
[1726078493113,0.0038036,57912.0,57911.0,0.17708593]
[1726078493572,0.0038036,57912.0,57911.0,0.00440793]
[1726078494066,0.0038036,57912.0,57910.0,0.17268]
[1726078494290,0.03088451,57912.0,57911.0,0.00440783]
[1726078494758,0.03088451,57912.0,57905.0,0.0345398]
[1726078494759,0.03088451,57912.0,57906.0,0.172691]
[1726078495011,0.03188451,57912.0,57911.0,0.00440783]
[1726078495237,0.03288451,57912.0,57911.0,0.009]
[1726078495473,0.03288451,57912.0,57892.0,0.345467]
[1726078495474,0.03,57910.0,57897.0,0.172719]
[1726078495935,0.03,57910.0,57898.0,0.00440783]
[1726078496818,0.1,57911.0,57898.0,0.00440783]
[1726078497028,0.0043179,57910.0,57904.0,0.172697]
[1726078497484,0.0043179,57910.0,57905.0,0.17710283]
[1726078497721,0.0043179,57910.0,57905.0,0.00440783]
[1726078497941,0.0043179,57910.0,57906.0,0.172691]
[1726078498394,0.10688451,57912.0,57906.0,0.172691]
[1726078498395,0.10688451,57912.0,57907.0,0.00440783]
[1726078498615,0.00215009,57911.0,57907.0,0.00440783]
[1726078499100,0.00215009,57911.0,57904.0,0.172696]
[1726078499383,0.10688451,57912.0,57911.0,0.172678]
[1726078499384,0.03088451,57912.0,57911.0,0.172678]
[1726078499607,0.03088451,57912.0,57911.0,0.928492]
[1726078499876,0.03088451,57912.0,57911.0,1.27825683]
[1726078500090,0.03088451,57912.0,57911.0,1.62361383]
[1726078501004,0.03088451,57912.0,57911.0,2.12197083]
[1726078501246,0.03088451,57912.0,57911.0,2.18192247]
[1726078501471,0.00082,57916.0,57915.0,1.553998]
[1726078501714,0.00082,57916.0,57915.0,1.8115203]
[1726078501947,0.00082,57926.0,57925.0,1.553733]
[1726078502180,0.00082,57926.0,57925.0,1.89428015]
[1726078502398,0.00082,57926.0,57925.0,1.96876108]
[1726078502625,0.02788812,57926.0,57925.0,1.97353623]
[1726078502845,0.02788812,57926.0,57925.0,2.07353623]
[1726078503366,0.0043157,57929.0,57928.0,1.238396]
[1726078503610,0.0043157,57929.0,57928.0,1.606652]
[1726078504073,0.0043157,57929.0,57928.0,1.95668315]
[1726078504509,0.000821,57934.0,57929.0,1.261375]
[1726078504728,0.000821,57934.0,57929.0,1.606625]
[1726078504958,0.000821,57934.0,57929.0,1.61133947]
[1726078505187,0.000821,57934.0,57929.0,1.58133947]
[1726078505906,0.000821,57934.0,57933.0,1.553517]
[1726078506127,0.000821,57934.0,57933.0,1.85074508]
[1726078506348,0.02788739,57934.0,57933.0,2.30547108]
[1726078506572,0.02788739,57934.0,57933.0,2.71831155]
[1726078506866,0.000821,57943.0,57942.0,0.54770964]
[1726078507081,0.000821,57943.0,57942.0,1.83748172]
[1726078507303,0.000821,57943.0,57942.0,2.87771219]
[1726078507968,0.000821,57943.0,57942.0,3.18658027]
[1726078508427,0.00082,57952.0,57949.0,1.92822]
[1726078508655,0.00082,57952.0,57949.0,2.64867908]
[1726078508876,0.00082,57952.0,57949.0,2.87313072]
[1726078509101,0.00082,57952.0,57949.0,2.91248519]
[1726078509795,0.00082,57952.0,57950.0,2.39290364]
[1726078510017,0.00082,57952.0,57950.0,2.49290364]
[1726078510468,0.00082,57952.0,57950.0,2.49561811]
[1726078510714,0.02787457,57951.0,57950.0,2.73520619]
[1726078511160,0.00082,57952.0,57951.0,2.35622464]
[1726078511376,0.00082,57952.0,57951.0,2.53492464]
[1726078511849,0.00082,57968.0,57963.0,0.16825164]
[1726078512076,0.00082,57968.0,57963.0,1.05509902]
[1726078512315,0.00082,57968.0,57963.0,2.54000149]
[1726078512536,0.00082,57968.0,57963.0,2.88504849]
[1726078512763,0.00082,57988.0,57980.0,0.517419]
[1726078512994,0.00082,57988.0,57980.0,1.55628098]
[1726078513276,0.00082,57988.0,57980.0,1.552257]
[1726078513510,0.00082,57988.0,57980.0,1.21202547]
[1726078514011,0.00082,57988.0,57980.0,1.70187147]
[1726078514245,0.07692,57988.0,57987.0,0.86226]
[1726078514524,0.0785236,57988.0,57987.0,1.21130135]
[1726078515648,0.10556769,57988.0,57987.0,1.21130135]
[1726078515867,0.10556769,57988.0,57987.0,1.21630135]
[1726078516308,0.02946769,57988.0,57987.0,1.65702943]
[1726078516534,0.02946769,57988.0,57987.0,1.21730135]
[1726078516972,0.02432875,57994.0,57993.0,0.172434]
[1726078517198,0.02432875,57994.0,57993.0,0.862172]
[1726078517429,0.02432875,57994.0,57993.0,0.17691613]
[1726078517667,0.98845083,57994.0,57993.0,0.00448213]
[1726078517907,0.98845083,57994.0,57987.0,0.011]
[1726078517908,0.0826,57991.0,57987.0,0.005]
[1726078518372,0.0826,57991.0,57988.0,0.00413735]
[1726078518613,0.0826,57991.0,57988.0,0.344898]
[1726078518861,0.0826,57991.0,57990.0,0.172443]
[1726078519311,0.0826,57991.0,57990.0,0.57320145]
[1726078519561,0.0826,57991.0,57990.0,0.91808845]
[1726078519789,0.05137712,57994.0,57993.0,0.862172]
[1726078519790,0.02704837,57994.0,57993.0,0.862172]
[1726078520014,0.02704837,57994.0,57993.0,1.207041]
[1726078520238,0.02704837,57994.0,57993.0,1.21153401]
[1726078520925,0.02704837,57994.0,57993.0,0.86666501]
[1726078521571,0.02704837,57994.0,57993.0,0.52179601]
[1726078521782,0.02704837,57994.0,57993.0,0.00449301]
[1726078522008,0.02704837,57994.0,57993.0,0.17692701]
[1726078522218,0.02704837,57994.0,57993.0,0.172434]
[1726078522438,0.02704837,57994.0,57993.0,0.17690149]
[1726078522673,0.02704837,57994.0,57993.0,0.93281784]
[1726078522903,0.02704837,57994.0,57993.0,0.91881784]
[1726078523348,0.02704837,57994.0,57993.0,1.22950849]
[1726078523776,0.02704837,57994.0,57993.0,1.21550849]
[1726078524220,0.02704837,57994.0,57993.0,1.22950849]
[1726078524438,0.02704837,57994.0,57993.0,0.88463949]
[1726078524707,0.02704837,57994.0,57993.0,0.88063949]
[1726078524939,0.38227645,57994.0,57993.0,0.01846749]
[1726078525160,0.38227645,57994.0,57993.0,0.03246749]
[1726078525381,0.38227645,57994.0,57993.0,0.014]
[1726078526075,0.44787645,57994.0,57993.0,0.014]
[1726078526297,0.44787645,57994.0,57993.0,0.001]
[1726078526531,0.44787645,57994.0,57984.0,0.34492]
[1726078526532,0.44787645,57994.0,57989.0,0.172446]
[1726078526747,0.0827,57993.0,57989.0,0.172446]
[1726078526978,0.0827,57993.0,57992.0,0.172437]
[1726078527218,0.0827,57993.0,57990.0,0.17689267]
[1726078527454,0.0827,57993.0,57992.0,0.00445975]
[1726078527695,0.0827,57993.0,57989.0,0.172445]
[1726078528181,0.0827,57993.0,57990.0,0.00445975]
[1726078528182,0.01709484,57992.0,57990.0,0.00445975]
[1726078528422,0.1127,57991.0,57990.0,0.00445975]
[1726078528707,0.0847,57986.0,57976.0,0.34497]
[1726078528967,0.27422808,57984.0,57978.0,0.172476]
[1726078529222,0.27422808,57984.0,57977.0,0.34962147]
[1726078529483,0.02705047,57983.0,57980.0,0.17247]
[1726078529754,0.02705047,57983.0,57973.0,0.344986]
[1726078529755,0.02920056,57983.0,57973.0,0.344986]
[1726078530031,0.02920056,57983.0,57952.0,0.06]
[1726078530032,0.27356015,57982.0,57981.0,0.0042796]
[1726078530266,0.2541,57979.0,57978.0,0.002]
[1726078530537,0.1421,57969.0,57952.0,0.345111]
[1726078530779,0.27422808,57964.0,57956.0,0.345086]
[1726078531016,0.0775,57963.0,57954.0,0.345098]
[1726078531268,0.07965009,57963.0,57961.0,0.172529]
[1726078531508,0.0775,57968.0,57955.0,0.0042796]
[1726078531750,0.0775,57973.0,57962.0,0.0042796]
[1726078532004,0.07965009,57973.0,57965.0,0.345031]
[1726078532256,0.07965009,57973.0,57968.0,0.172508]
[1726078532257,0.0775,57973.0,57968.0,0.172508]
[1726078532592,0.0775,57973.0,57966.0,0.345027]
[1726078532593,0.0651,57968.0,57966.0,0.00437985]
[1726078532768,0.00162015,57963.0,57961.0,0.001]
[1726078533007,0.07997859,57967.0,57944.0,0.0042876]
[1726078533008,0.145,57961.0,57953.0,0.345105]
[1726078533283,0.14715009,57961.0,57949.0,0.345125]
[1726078533534,0.0478285,57967.0,57944.0,0.0042876]
[1726078533535,0.0799,57953.0,57944.0,0.0042876]
[1726078533765,0.27422808,57947.0,57944.0,0.0042876]
[1726078534002,0.00215009,57946.0,57944.0,0.0042876]
[1726078534246,0.0812,57946.0,57944.0,0.0042876]
[1726078534461,0.08335009,57946.0,57944.0,0.0042876]
[1726078534673,0.0812,57946.0,57944.0,0.0042876]
[1726078534887,0.10826732,57946.0,57945.0,0.172577]
[1726078535525,0.10826732,57946.0,57944.0,0.0042876]
[1726078535746,0.02706732,57946.0,57945.0,0.517731]
[1726078535966,0.02706732,57946.0,57945.0,0.862885]
[1726078536534,0.02806732,57946.0,57945.0,0.870885]
[1726078536857,0.02706732,57946.0,57945.0,1.208039]
[1726078537293,0.02806732,57946.0,57945.0,0.872885]
[1726078538599,0.02806732,57946.0,57945.0,0.862885]
[1726078538600,0.02706732,57946.0,57945.0,0.862885]
[1726078538835,0.02806732,57946.0,57945.0,1.216039]
[1726078539091,0.02806732,57946.0,57945.0,1.208039]
[1726078539360,0.02806732,57946.0,57945.0,0.862885]
[1726078539619,0.02706732,57946.0,57945.0,0.924185]
[1726078539850,0.02806732,57946.0,57945.0,1.269339]
[1726078540083,0.02906732,57946.0,57945.0,1.283339]
[1726078540336,0.0773,57958.0,57945.0,1.283339]
[1726078540337,0.0773,57958.0,57957.0,0.517624]
[1726078540585,0.09930781,57958.0,57957.0,0.517624]
[1726078540820,0.09930781,57958.0,57957.0,0.862707]
[1726078540821,0.02200781,57958.0,57957.0,0.862707]
[1726078541058,0.02200781,57958.0,57957.0,1.21198793]
[1726078541059,0.0270607,57958.0,57957.0,1.21198793]
[1726078541552,0.0270607,57958.0,57957.0,1.55707093]
[1726078541807,0.0819,57972.0,57969.0,0.172504]
[1726078542058,0.0819,57972.0,57971.0,0.5175]
[1726078542295,0.10410717,57972.0,57971.0,0.5175]
[1726078542522,0.10410717,57972.0,57971.0,0.00460666]
[1726078542991,0.10410717,57972.0,57971.0,0.5175]
[1726078543230,0.10410717,57972.0,57971.0,0.86672277]
[1726078543478,0.02220717,57972.0,57971.0,1.21172277]
[1726078543706,0.34492,57985.0,57983.0,0.172463]
[1726078543707,0.0604,57985.0,57983.0,0.172463]
[1726078543956,0.02240404,57984.0,57981.0,0.172469]
[1726078544235,0.19486904,57983.0,57979.0,0.172474]
[1726078544474,0.19486904,57983.0,57971.0,0.01622277]
[1726078544475,0.001,57972.0,57971.0,0.5435]
[1726078544732,0.0791,57982.0,57961.0,0.0803]
[1726078544944,0.02249072,57981.0,57980.0,0.172473]
[1726078545488,0.04954114,57981.0,57980.0,0.517419]
[1726078546456,0.02805042,57981.0,57980.0,0.867365]
[1726078546708,0.02805042,57981.0,57980.0,1.212311]
[1726078547194,0.001,57981.0,57980.0,1.212311]
[1726078547413,0.002,57981.0,57980.0,1.654157]
[1726078547634,0.00077039,57981.0,57980.0,1.304211]
[1726078547897,0.02704495,57991.0,57990.0,1.207104]
[1726078549527,0.02804495,57991.0,57990.0,1.221104]
[1726078550207,0.02804495,57991.0,57990.0,0.876217]
[1726078550422,0.02804495,57991.0,57990.0,0.889217]
[1726078550641,0.001,57991.0,57990.0,0.889217]
[1726078551309,0.001,57991.0,57990.0,0.027]
[1726078551552,0.0805,57991.0,57990.0,0.199443]
[1726078552034,0.0805,57991.0,57990.0,0.027]
[1726078552041,0.0805,57991.0,57990.0,0.371887]
[1726078552269,0.0805,57991.0,57990.0,0.027]
[1726078552507,0.31904,57991.0,57990.0,0.027]
[1726078552737,0.1466,57991.0,57990.0,0.027]
[1726078553220,0.68759108,57991.0,57990.0,0.027]
[1726078553448,1.03247208,57991.0,57990.0,0.027]
[1726078553693,0.68759108,57991.0,57990.0,0.027]
[1726078553936,0.34271008,57991.0,57990.0,0.014]
[1726078554183,0.34271008,57991.0,57990.0,0.001]
[1726078554184,0.51515108,57991.0,57990.0,0.001]
[1726078554427,1.03247208,57991.0,57990.0,0.005141]
[1726078554682,0.69659108,57991.0,57990.0,0.002]
[1726078554920,0.69659108,57991.0,57990.0,0.001]
[1726078555154,0.35371008,57991.0,57990.0,0.001]
[1726078555370,0.34471008,57991.0,57990.0,0.001]
[1726078555666,0.34471008,57991.0,57990.0,0.00514684]
[1726078555667,0.17227008,57991.0,57990.0,0.00514684]
[1726078555885,0.1476,57991.0,57988.0,0.172448]
[1726078556133,0.32004,57991.0,57990.0,0.00414684]
[1726078556387,0.173683,57991.0,57990.0,0.003]
[1726078556618,0.17168279,57991.0,57990.0,0.003]
[1726078556863,0.1476,57991.0,57990.0,0.17958984]
[1726078557088,0.1476,57991.0,57990.0,0.186443]
[1726078557333,0.0815,57991.0,57990.0,0.19058984]
[1726078557570,0.000818,57994.0,57993.0,0.172434]
[1726078558056,0.000818,57994.0,57993.0,0.52082683]
[1726078558321,0.000818,57994.0,57993.0,0.00452383]
[1726078558568,0.000818,57994.0,57993.0,0.17595783]
[1726078558784,0.000818,57994.0,57990.0,0.013]
[1726078558997,0.0761,57992.0,57990.0,0.013]
[1726078559179,0.24854,57992.0,57990.0,0.013]
[1726078559451,0.17244,57991.0,57990.0,0.013]
[1726078559650,0.62091008,57994.0,57993.0,0.862172]
[1726078559651,0.001818,57994.0,57993.0,0.862172]
[1726078560110,0.001818,57994.0,57993.0,0.86624446]
[1726078560563,0.0288601,57994.0,57993.0,0.87524446]
[1726078560786,0.0278601,57994.0,57993.0,0.87524446]
[1726078561013,0.0278601,57994.0,57993.0,0.86724446]
[1726078561661,0.0278601,57994.0,57993.0,0.87824446]
[1726078561662,0.0288601,57994.0,57993.0,0.87824446]
[1726078561884,0.0288601,57994.0,57993.0,0.02407246]
[1726078562104,0.078018,57994.0,57993.0,0.192434]
[1726078562548,0.078018,57994.0,57993.0,0.537303]
[1726078562774,0.001818,57994.0,57993.0,0.88623803]
[1726078563509,0.001818,57994.0,57993.0,1.37180703]
[1726078564187,0.001818,57994.0,57993.0,1.86967603]
[1726078564417,0.001818,57994.0,57993.0,1.83967603]
[1726078564656,0.001818,57994.0,57993.0,1.81667603]
[1726078565019,0.000818,57994.0,57993.0,1.79667603]
[1726078565225,0.000818,57994.0,57993.0,1.80867603]
[1726078565630,0.000818,57994.0,57993.0,1.79667603]